Cogmind - Beta 13 @@@ ROGUE MODE // 2024.05.27 @ 05:47:40 Player: Some Pennies Result: Destroyed by D-53 Grenadier with Mini Grenade Launcher Performance ------------- Evolutions (0) 0 Regions Visited (2) 400 Robots Destroyed (10) 50 Value Destroyed (203) 203 Prototype IDs (2) 40 Alien Tech Used (0) 0 Bonus (0) 0 TOTAL SCORE: 693 Bonus ------- None Cogmind --------- Core Integrity 0/250 Matter 300/300 Energy 82/100 System Corruption 0% Temperature Cool (0) Movement Flying (120) Ox1 Location -10/Mines Parts ------- > --- POWER (1) -------- (None) > --- PROPULSION (2) --- Flight Unit > --- UTILITY (2) ------ Small Storage Unit > --- WEAPON (2) ------- (None) > --- INVENTORY (8) ---- Advanced Visual Processing Unit Improved Terrain Scanner Armor Integrity Analyzer ECM Suite Field Laser Rocket Launcher Mining Laser Peak State ------------ > --- POWER ------------ Light Ion Engine > --- PROPULSION ------- Flight Unit Flight Unit > --- UTILITY ---------- Small Storage Unit Light Armor Plating > --- WEAPON ----------- EM Pulse Gun Field Laser > --- INVENTORY -------- Light Ion Engine Flight Unit Advanced Visual Processing Unit Improved Terrain Scanner ECM Suite Rocket Launcher Mining Laser [Rating: 10] Favorites ----------- Power Light Ion Engine Engine Light Ion Engine Propulsion Flight Unit Flight Unit Flight Unit Utility Signal Interpreter Device Seismic Detector Storage Small Storage Unit Processor Signal Interpreter Protection Light Armor Plating Weapon EM Pulse Gun Energy Gun EM Pulse Gun Build | -11 -10 -10 ------- Run | Yrd Mat Min Slots Evolved . | . . . Power . | . . . Propulsion . | . . . Utility . | . . . Weapon . | . . . Parts Attached 13 | 2 4 7 Power 2 | . 1 1 Engine 2 | . 1 1 Core . | . . . Reactor . | . . . Propulsion 3 | . . 3 Treads . | . . . Leg . | . . . Wheel . | . . . Hover . | . . . Flight 3 | . . 3 Utility 4 | . 2 2 Device 1 | . 1 . Storage 1 | . . 1 Processor 1 | . 1 . Hackware . | . . . Protection 1 | . . 1 Artifact . | . . . Weapon 4 | 2 1 1 Energy Gun 4 | 2 1 1 Energy Cannon . | . . . Ballistic Gun . | . . . Ballistic Cannon . | . . . Launcher . | . . . Special Weapon . | . . . Impact Weapon . | . . . Slashing Weapon . | . . . Piercing Weapon . | . . . Special Melee Weapon . | . . . Unidentified Prototypes . | . . . Parts Lost 8 | . 2 6 Power 2 | . . 2 Propulsion 2 | . . 2 Utility 2 | . 1 1 Weapon 2 | . 1 1 Highest Loss Streak 6 | . 1 6 To Critical Strikes . | . . . Average Slot Usage (%) 55 | . 46 64 Engine 9 | . 4 13 Flight 5 | . . 9 Device 3 | . 6 . Storage 4 | . . 9 Processor 9 | . 12 7 Protection 1 | . . 3 Energy Gun 20 | . 22 18 Naked Turns . | . . . Heaviest Build 16 | 4 7 16 Greatest Support 8 | 3 3 8 Greatest Overweight (x) 4 | 1 2 4 Average Overweight (x) . | . . 1 Largest Inventory Capacity 8 | 5 5 8 Average Capacity 5 | 5 5 7 Most Carried 8 | 5 5 8 Average Carried 4 | 1 4 6 Final Capacity 8 | 5 5 8 Final Carried 7 | 5 5 7 Class Distribution -------------------- 100% | Mutant Dominant Class ---------------- Mutant | -10/Materials Mutant | -10/Mines Resources | -11 -10 -10 ----------- Run | Yrd Mat Min Matter Collected 306 | 220 35 51 Remotely . | . . . Salvage Created 430 | 133 297 . Parts 22 | 6 16 . Haulers Intercepted 1 | . 1 . Recyclers Shooed . | . . . Parts Field Recycled . | . . . Retrieved Matter . | . . . Parts Self-Destructed . | . . . Prevented . | . . . Kills | -11 -10 -10 ------- Run | Yrd Mat Min Combat Hostiles Destroyed 4 | . 4 . Guns 3 | . 3 . AOE 1 | . 1 . Classes Destroyed 5 | 2 3 . Tunneler 2 | 2 . . Hauler 1 | . 1 . Recycler 1 | 1 . . Operator 2 | . 2 . Grunt 4 | . 4 . Best Kill Streak 4 | 2 4 . Combat Bots Only 4 | . 4 . Max Kills in Single Turn 1 | 1 1 . Gunslinging . | . . . Exploded 1 | . 1 . Melee . | . . . Uniques/NPCs Destroyed . | . . . Combat | -11 -10 -10 -------- Run | Yrd Mat Min Hostile Shots Fired 30 | . 20 10 Missed 2 | . 2 . Damage Taken 679 | . 250 429 Core 299 | . 132 167 Absorbed by Shields . | . . . Core Remaining (%) 100 | 100 . . Volleys Fired 28 | 7 19 2 Largest 2 | 2 2 2 Hottest 103 | 80 80 103 Shots Fired 43 | 14 26 3 Gun 43 | 14 26 3 Cannon . | . . . Launcher . | . . . Special . | . . . Kinetic . | . . . Thermal 1 | . . 1 Explosive . | . . . Electromagnetic 42 | 14 26 2 Robot Hit Streak 8 | 7 6 8 Robot Miss Streak 1 | 1 1 . Penetration Max . | . . . Secondary Targets . | . . . Shots Hit Robots 30 | 10 18 2 Core Hits 14 | 4 10 . Critical Kills . | . . . Critical Parts Destroyed . | . . . Critical Strikes 1 | 1 . . Corrupt 1 | 1 . . Melee Attacks . | . . . Impact . | . . . Slashing . | . . . Piercing . | . . . Sneak Attacks . | . . . Combat Hostiles . | . . . Follow-up Attacks . | . . . Damage Inflicted 455 | 151 273 31 Guns 422 | 151 240 31 Cannons . | . . . Explosions 33 | . 33 . Melee . | . . . Ramming . | . . . Kinetic . | . . . Thermal 49 | . 33 16 Explosive . | . . . Electromagnetic 406 | 151 240 15 Impact . | . . . Slashing . | . . . Piercing . | . . . Highest Corruption . | . . . Average Corruption . | . . . Corruption Purged . | . . . Corruption Blocked . | . . . Overload Shots . | . . . Overflow Damage . | . . . Projectiles . | . . . Explosions . | . . . Melee . | . . . Knockbacks . | . . . Impact . | . . . Kinetic . | . . . Secondary . | . . . Self-Inflicted Damage 39 | . 39 . Shots 1 | . 1 . Rammed . | . . . Targets Rammed . | . . . Kicked . | . . . Crushed . | . . . Highest Temperature 57 | 31 33 57 Average Temperature 13 | 10 12 29 Received Heat Transfer 120 | . 120 . Siege Activations . | . . . Robots Corrupted . | . . . Combat Hostiles . | . . . Parts Fried 2 | 1 1 . Impact Corruptions . | . . . Robots Melted . | . . . Combat Hostiles . | . . . Parts Melted . | . . . Heat Transferred 37 | . . 37 Parts Sabotaged . | . . . Parts Stolen . | . . . Parts Stripped . | . . . Power Chain Reactions 1 | . 1 . Alert | -11 -10 -10 ------- Run | Yrd Mat Min Peak Influence 237 | 15 237 133 Initial 88 | . 9 88 Average 105 | 8 142 98 Maximum Alert Level 1 | . 1 . Low Security (%) 78 | 100 49 100 Level 1 21 | . 50 . Level 2 . | . . . Level 3 . | . . . Level 4 . | . . . Level 5 . | . . . High Security . | . . . Max Security . | . . . Squads Dispatched 3 | . 2 1 Investigation 2 | . 1 1 Extermination . | . . . Reinforcement 1 | . 1 . Assault . | . . . Garrison . | . . . Intercept . | . . . Searches Triggered . | . . . Construction Impeded . | . . . Haulers Reinforced . | . . . Active Scanning Responses . | . . . Cargo Convoy Interrupts . | . . . Stealth | -11 -10 -10 --------- Run | Yrd Mat Min Distress Signals 3 | . 3 . Communications Jammed . | . . . Distress Signals . | . . . Times Spotted 17 | . 14 3 Peak Tracking Total 5 | . 5 3 Tactical Retreats 2 | . 1 1 Traps | -11 -10 -10 ------- Run | Yrd Mat Min Traps Triggered . | . . . Indirectly . | . . . Trap Hack Attempts . | . . . Triggered . | . . . Disarmed . | . . . Reprogrammed . | . . . Reused . | . . . Traps Extracted . | . . . Installed . | . . . Triggered . | . . . Machines | -11 -10 -10 ---------- Run | Yrd Mat Min Machines Disabled . | . . . Max in Single Turn . | . . . Machines Repaired . | . . . Machines Dismantled . | . . . Machines Sabotaged . | . . . Overloaded Fab Kills . | . . . Hacking | -11 -10 -10 --------- Run | Yrd Mat Min Machines Accessed 3 | . 2 1 Terminals 2 | . 2 . Fabricators . | . . . Repair Stations . | . . . Recycling Units . | . . . Scanalyzers . | . . . Garrison Access . | . . . Total Hacks 7 | . 6 1 Successful 3 | . 2 1 Failed 4 | . 4 . Catastrophic . | . . . Database Lockouts . | . . . Manual 5 | . 5 . Terminals 6 | . 6 . Fabricators . | . . . Repair Stations . | . . . Recycling Units . | . . . Scanalyzers . | . . . Garrison Access . | . . . Terminal Hacks 3 | . 2 1 Robot Analysis 1 | . 1 . Prototype ID Bank 1 | . 1 . Open Door 1 | . . 1 Fabricator Hacks . | . . . Repair Station Hacks . | . . . Recycling Unit Hacks . | . . . Scanalyzer . | . . . Garrison Access Hacks . | . . . Unauthorized Hacks . | . . . Terminals . | . . . Fabricators . | . . . Repair Stations . | . . . Recycling Units . | . . . Scanalyzers . | . . . Garrison Access . | . . . Data Cores Recovered 1 | . 1 . Used . | . . . Hacking Detections 2 | . 2 . Full Trace Events 1 | . 1 . Feedback Events . | . . . Feedback Blocked . | . . . Robot Schematics Acquired . | . . . Robots Built . | . . . Authchips . | . . . Time . | . . . Total Robot Build Rating . | . . . Part Schematics Acquired . | . . . Parts Built . | . . . Authchips . | . . . Time . | . . . Total Part Build Rating . | . . . Parts Repaired . | . . . Time . | . . . Parts Recycled . | . . . Recycled Matter . | . . . Retrieved Matter . | . . . Retrieved Components . | . . . Parts Scanalyzed . | . . . Part Schematics Acquired . | . . . Parts Damaged . | . . . Bothacking | -11 -10 -10 ------------ Run | Yrd Mat Min Used RIF Installer . | . . . Robots Hacked . | . . . Non-combat . | . . . Combat . | . . . Robot Hacks Applied . | . . . Relay Couplers Released . | . . . Fabnet Peak Effective % . | . . . Robots Rewired . | . . . Allies Hacked . | . . . Hacks Repelled . | . . . Allies | -11 -10 -10 -------- Run | Yrd Mat Min Total Allies . | . . . Largest Group . | . . . Highest-Rated Group . | . . . Highest-Rated Ally . | . . . Total Orders . | . . . Ally Attacks . | . . . Total Damage . | . . . Kills . | . . . Allies Corrupted . | . . . Allies Melted . | . . . Intel | -11 -10 -10 ------- Run | Yrd Mat Min Robot Analysis Total 1 | . 1 . Derelict Logs Recovered . | . . . Drone Launches . | . . . Drone Recoveries . | . . . Exploration | -11 -10 -10 ------------- Run | Yrd Mat Min Turns Passed 702 | 93 301 308 Spaces Moved 568 | 85 268 215 Core 496 | 85 268 143 Treads . | . . . Legs . | . . . Wheels . | . . . Hover . | . . . Flight 72 | . . 72 Fastest Speed 37 | 50 50 37 Average Speed 96 | 75 80 126 Slowest Speed 250 | 100 150 250 Overloaded Moves . | . . . Propulsion Burnouts . | . . . Robots Hopped 1 | . . 1 Cave-ins Triggered . | . . . Exploration Rate (%) 35 | 3 49 54 Regions Visited 2 Branch Regions 1 Pre-discovered Areas . | . . . Known Exits Taken 1 | . 1 . Unknown Exits Taken 1 | 1 . . Scrap Searched 2 | . . 2 Spaces Dug . | . . . Terrain Destroyed 4 | . 4 . Melee . | . . . Projectile . | . . . AOE 4 | . 4 . Terrain Rammed . | . . . Walls Destroyed . | . . . Machines Disabled . | . . . Actions | -11 -10 -10 --------- Run | Yrd Mat Min Total 676 | 100 327 249 Wait 46 | . 32 14 Move 564 | 84 267 213 Hop 1 | . . 1 Pick Up 19 | 6 4 9 Fast Attach 1 | . 1 . Attach 12 | 2 3 7 Detach 2 | 1 . 1 Swap . | . . . Drop 3 | . 1 2 Fire 28 | 7 19 2 Melee . | . . . Ram . | . . . Kick . | . . . Crush . | . . . Escape Stasis . | . . . Rewire . | . . . Trap . | . . . Miscellaneous . | . . . Route ------- -11/Scrapyard -10/Materials -10/Mines History --------- Turn | Location | Event 4 | -11/Scrapyard | Discovered new exit (range 16) 94 | -11/Scrapyard | Entered Materials 194 | -10/Materials | Discovered new exit (range 6) 322 | -10/Materials | Build established: Mutant 394 | -10/Materials | Core integrity fell below 50% 394 | -10/Materials | Identified exit to Mines 395 | -10/Materials | Entered Mines 455 | -10/Mines | Found a hidden stash of uninstalled traps 495 | -10/Mines | Received a Rocket Launcher from a helpful Derelict 559 | -10/Mines | Met a Derelict shopkeep closing up shop 654 | -10/Mines | Assembled infested the area 659 | -10/Mines | Assisted by a Guerilla fighting off Assembled 702 | -10/Mines | Core integrity fell below 20% 703 | -10/Mines | Destroyed by D-53 Grenadier with Mini Grenade Launcher Last Messages --------------- 00654_ ALERT: Infestation in the mines, dispatching Demolisher response squad. 00673_ LL-QD2(h): "I'll hold them off! Go on ahead or try to find another way!" 00683_ K-01 Serf collects debris. 00684_ LL-QD2(h) destroyed. 00688_ Dropped Assault Rifle. 00692_ Acquired Armor Integrity Analyzer. 00695_ C-30 ARC bursts open, deploying its payload. 00695_ D-53 Grenadier unfolds itself. 00695_ Lgt. Ion Engine destroyed. 00697_ Flight Unit destroyed. 00697_ EM Pulse Gun destroyed. 00699_ Acquired 1 matter. 00699_ The unstable cave ceiling collapses. 00699_ Lgt. Ion Engine destroyed. 00701_ Flight Unit destroyed. 00702_ The unstable cave ceiling collapses. 00703_ Lgt. Armor Plating destroyed. Map ----- +----------------------------------------------------+ | ?????????????????????????????????????????? | | ?????????????????????????????????????????? | | ?????????????????????????????????????????? | | ?????????????????????????????????????????? | | ?????????????????????????????????????????? | | ?????????????????????????????????????????? | | ?????????????????????????????????????????? | | ?????????????????????????????????????????? | | ?????????????????????????????????????????? | | ??????###????????????????????????????????? | | ????## ##???????????????????????????????? | | ????# #???????????????????????????????? | | ##### #???????????????????????????????? | | # #????????????????????????????????? | | #????????????????????????????????? | | ## #?????????????###???? ???????????? | | ?## ##????????????## ? #???????????? | | ??# ###?????????????# ##??????????? | | ??# #???????????????# """ ##?????????? | | ??# #####??????????? """ ##????????? | | ??# #???????????? """ ?????????? | | ??# #????????????# ??????????? | | ??##### #????????????# ???????????? | | ????### #????????????# ##???????????? | | ???## #??????????### #???????????? | | ???# #??######??# @ #???????????? | | ???# ##?##""""##?# #??????????? | | ???## ##?#"*! "#?## #??????????? | | ????## ###"/ !"#??# ##??????????? | | ###### ## ##?## #??????????? | | # ## ##### ##??????????? | | X ## d ##??????????? | | ### !=## # ## #?? | | #?# #" % %%=!% d """????? | | #??# ##### %*%*##* ## """????? | | #???# #???#"# !##?# ##?? """????? | | #????# ##?????####??# ####???? ?????? | | ????# #????????????# ####????????##????? | | ????# #????????????# ########??????????? | | ???? #????????????# =%[|#??????????? | | ??? #????????????#### ### #??????????? | | ??## ????????????????# #?#%#??????????? | | ???### ????????????????# #?#!#??????????? | | ?????# ????????????????# #?#] ??????????? | | ?????# ????????????????# #? ??????????? | | ?????# ???????????###### #?# #?????????? | | ??????$ ???????????# #?####?????????? | | ???????????????????# ######??????????????? | | ?????????????????????????????????????????? | | ?????????????????????????????????????????? | +----------------------------------------------------+ Best States ------------- Heat Dissipation 25 Energy Generation 10 Energy Capacity 125 Matter Stores 300 Matter Capacity 300 Sight Range 16 Terrain Scan Density 10 Armor Coverage 150 Evasion (%) 50 Item Schematics ----------------- None Robot Schematics ------------------ None Fabricated ------------ Nothing Alien Tech Used ----------------- None Achievements -------------- None Challenges ------------ None Game ------ Seed AssaultAlertTendrils Manual? 0 Play Time 00:11:38 Cumulative 95.5 hours Start 2024.05.27 @ 05:38:38 End 2024.05.27 @ 05:47:40 Sessions 1 Manual Loads 0 Difficulty Rogue Special Mode None Game No. 85 Rogue 80 Adventurer 5 Explorer 0 Win Type - Total 1 Types 1/0/0/0/0/0/0/0/0 Lore% 44 Gallery% 55 Achievement% 40 Wizard Run 0 Options --------- Layout 2 ASCII 0 Keyboard 0 Movement Mouse Keybinds 0 Fullscreen 2 Font 24/Smallcaps Map View 50x44 Zoom Use 0% Tactical HUD 1 Map Filters NONE Filters NONE Steam 1 RUN: 727be888-212f-43f3-bea2-c33d6fe2e7e1